{"text_format":"1","workbook":"xlsx","n_sheets":5,"sheets":["3g4","SpSt.3g4","Spielleiter","Vereins Nummern","HILFE"],"not_rendered":{"charts":0,"images":2,"macros":1,"external_links":22,"defined_names":242,"comments":0,"pivot_tables":0},"unopened":[],"bounds":{"document_bytes":16777216,"sheet_cells":100000,"rows_first":2000,"rows_last":500,"rows_between":2000,"halvings":0,"cell_chars":16384,"cell_head_chars":4096},"cells_cut":0,"cells_raw":0,"read":"whole","date_system":"1900"}

{"sheet":"3g4","index":0,"n_rows":60,"n_cols":149,"rows_kept":60,"cut":false,"hidden":false,"merged":[[1,91,1,92],[2,6,2,41],[3,6,3,9],[3,10,3,23],[3,24,3,27],[3,28,3,41],[3,79,3,94],[58,103,58,145],[59,0,59,145],[14,138,14,145],[11,77,14,80],[14,81,14,84],[14,85,14,137],[11,6,13,9],[14,6,14,74],[58,6,58,23],[58,25,58,47],[58,96,58,102],[58,48,58,55],[58,56,58,72],[58,73,58,78],[58,79,58,95],[56,6,56,145],[57,6,57,23],[57,25,57,47],[57,48,57,55],[57,56,57,72],[57,73,57,78],[57,79,57,95],[57,96,57,102],[57,103,57,145],[50,6,50,36],[53,67,55,71],[53,72,55,104],[53,105,55,107],[53,108,55,112],[53,113,55,145],[55,6,55,36],[55,44,55,63],[39,72,52,104],[39,105,52,112],[39,113,52,145],[40,15,44,16],[40,17,44,40],[34,6,34,145],[35,6,39,14],[51,6,54,9],[51,10,54,10],[51,11,54,36],[52,44,54,63],[35,67,38,88],[35,89,38,123],[35,15,39,16],[35,17,39,40],[35,41,55,42],[45,6,45,36],[45,37,55,40],[46,6,49,9],[46,10,49,10],[46,11,49,36],[35,43,46,64],[47,43,49,64],[50,43,51,64],[52,43,55,43],[52,64,55,64],[31,6,31,145],[33,124,33,129],[40,6,44,14],[32,6,32,145],[33,6,33,16],[33,17,33,18],[33,19,33,55],[33,56,33,62],[33,68,33,69],[33,75,33,86],[33,87,33,93],[35,65,55,66],[33,94,33,98],[33,99,33,100],[33,101,33,105],[33,106,33,116],[33,117,33,123],[33,63,33,67],[33,70,33,74],[35,124,38,145],[39,67,52,71],[33,130,33,131],[33,132,33,137],[33,138,33,145],[29,6,29,127],[29,128,30,132],[29,133,30,137],[29,138,30,141],[29,142,30,145],[30,6,30,19],[30,20,30,30],[30,31,30,40],[30,41,30,54],[30,55,30,65],[30,66,30,87],[30,88,30,93],[30,94,30,95],[30,96,30,101],[30,102,30,127],[27,6,27,8],[27,9,27,15],[27,16,27,46],[27,47,27,77],[27,78,27,82],[27,83,27,87],[27,113,27,117],[28,6,28,8],[28,9,28,15],[28,16,28,46],[28,47,28,77],[28,78,28,82],[28,83,28,87],[28,88,28,92],[28,93,28,97],[28,98,28,102],[28,103,28,107],[28,108,28,112],[28,113,28,117],[28,123,28,127],[28,128,28,132],[27,133,27,137],[27,138,27,141],[27,142,27,145],[27,88,27,92],[27,93,27,97],[27,98,27,102],[27,103,27,107],[27,108,27,112],[27,118,27,122],[27,123,27,127],[27,128,27,132],[28,133,28,137],[28,138,28,141],[28,142,28,145],[28,118,28,122],[25,6,25,8],[25,9,25,15],[25,16,25,46],[25,47,25,77],[25,78,25,82],[25,83,25,87],[25,113,25,117],[26,6,26,8],[26,9,26,15],[26,16,26,46],[26,47,26,77],[26,78,26,82],[26,83,26,87],[26,88,26,92],[26,93,26,97],[26,98,26,102],[26,103,26,107],[26,108,26,112],[26,113,26,117],[26,123,26,127],[26,128,26,132],[25,133,25,137],[25,138,25,141],[25,142,25,145],[25,88,25,92],[25,93,25,97],[25,98,25,102],[25,103,25,107],[25,108,25,112],[25,118,25,122],[25,123,25,127],[25,128,25,132],[26,133,26,137],[26,138,26,141],[26,142,26,145],[26,118,26,122],[23,6,23,8],[23,9,23,15],[23,16,23,46],[23,47,23,77],[23,78,23,82],[23,83,23,87],[23,113,23,117],[24,6,24,8],[24,9,24,15],[24,16,24,46],[24,47,24,77],[24,78,24,82],[24,83,24,87],[24,88,24,92],[24,93,24,97],[24,98,24,102],[24,103,24,107],[24,108,24,112],[24,113,24,117],[24,123,24,127],[24,128,24,132],[23,133,23,137],[23,138,23,141],[23,142,23,145],[23,88,23,92],[23,93,23,97],[23,98,23,102],[23,103,23,107],[23,108,23,112],[23,118,23,122],[23,123,23,127],[23,128,23,132],[24,133,24,137],[24,138,24,141],[24,142,24,145],[24,118,24,122],[21,6,21,8],[21,9,21,15],[21,16,21,46],[21,47,21,77],[21,78,21,82],[21,83,21,87],[21,113,21,117],[22,6,22,8],[22,9,22,15],[22,16,22,46],[22,47,22,77],[22,78,22,82],[22,83,22,87],[22,88,22,92],[22,93,22,97],[22,98,22,102],[22,103,22,107],[22,108,22,112],[22,113,22,117],[22,123,22,127],[22,128,22,132],[21,133,21,137],[21,138,21,141],[21,142,21,145],[21,88,21,92],[21,93,21,97],[21,98,21,102],[21,103,21,107],[21,108,21,112],[21,118,21,122],[21,123,21,127],[21,128,21,132],[22,133,22,137],[22,138,22,141],[22,142,22,145],[22,118,22,122],[20,113,20,117],[20,118,20,122],[20,123,20,127],[20,128,20,132],[20,138,20,141],[18,6,18,15],[18,16,19,16],[18,17,18,45],[18,46,19,46],[18,47,19,47],[20,83,20,87],[20,133,20,137],[18,108,19,112],[18,113,19,117],[20,6,20,8],[20,9,20,15],[20,16,20,46],[20,47,20,77],[20,78,20,82],[19,6,19,15],[19,17,19,45],[19,48,19,76],[18,142,19,145],[18,78,19,82],[18,83,19,87],[18,88,19,92],[18,93,19,97],[18,138,19,141],[18,128,19,132],[18,133,19,137],[18,98,19,102],[18,103,19,107],[20,142,20,145],[20,88,20,92],[20,93,20,97],[20,98,20,102],[20,103,20,107],[20,108,20,112],[13,10,13,13],[13,14,13,66],[13,67,13,74],[13,81,13,84],[13,85,13,137],[13,138,13,145],[17,78,17,87],[17,88,17,97],[18,118,19,122],[18,123,19,127],[18,48,18,76],[18,77,19,77],[17,108,17,117],[17,118,17,127],[17,47,17,77],[15,10,15,13],[15,14,15,42],[15,43,15,45],[15,46,15,74],[15,77,15,80],[17,98,17,107],[15,85,15,113],[17,128,17,137],[17,138,17,145],[15,6,15,9],[12,85,12,137],[0,0,58,5],[0,6,0,145],[1,47,1,50],[1,51,1,86],[1,87,1,90],[11,85,11,137],[11,138,11,145],[12,10,12,13],[10,6,10,13],[10,14,10,66],[10,67,10,74],[10,75,15,76],[10,77,10,84],[10,85,10,137],[12,14,12,66],[15,114,15,116],[15,117,15,145],[16,6,16,145],[17,6,17,15],[17,16,17,46],[10,138,10,145],[11,10,11,13],[2,42,5,45],[2,46,2,94],[2,95,5,100],[2,101,2,145],[3,46,3,76],[3,77,5,78],[12,67,12,74],[12,81,12,84],[15,81,15,84],[11,14,11,66],[11,67,11,74],[11,81,11,84],[4,6,4,41],[5,6,5,9],[5,10,5,23],[5,24,5,27],[5,28,5,41],[4,79,5,94],[4,101,4,120],[5,101,5,104],[5,106,5,120],[0,149,59,152],[1,6,1,18],[1,19,1,46],[1,93,1,134],[1,135,1,145],[9,6,9,145],[3,101,3,104],[3,106,3,120],[3,121,5,131],[3,132,5,134],[8,6,8,45],[8,46,8,60],[8,72,8,86],[8,87,8,145],[3,135,5,145],[4,46,5,76],[6,6,6,60],[6,61,6,71],[6,72,6,126],[7,130,7,145],[7,87,7,126],[12,138,12,145],[6,127,7,129],[6,130,6,136],[6,137,6,138],[6,139,6,145],[7,6,7,45],[7,46,7,53],[7,54,7,60],[7,61,8,71],[7,72,7,79],[7,80,7,86]]}
[null,null,null,null,null,null,"\"Braunschweiger System\"   -   3 gegen 4"]
[null,null,null,null,null,null,null,null,null,null,null,null,null,null,null,null,null,null,null,"TT-Berzirk 6",null,null,null,null,null,null,null,null,null,null,null,null,null,null,null,null,null,null,null,null,null,null,null,null,null,null,null,"-",null,null,null,"Oberfranken Ost",null,null,null,null,null,null,null,null,null,null,null,null,null,null,null,null,null,null,null,null,null,null,null,null,null,null,null,null,null,null,null,null,null,null,null,"-",null,null,null,null,null,"Bezirks-"]
[]
[null,null,null,null,null,null,null,null,null,null," Damen",null,null,null,null,null,null,null,null,null,null,null,null,null,null,null,null,null," Mädchen",null,null,null,null,null,null,null,null,null,null,null,null,null,null,null,null,null,"Bereich",null,null,null,null,null,null,null,null,null,null,null,null,null,null,null,null,null,null,null,null,null,null,null,null,null,null,null,null,null,null,null,null,"Klasse/Gruppe",null,null,null,null,null,null,null,null,null,null,null,null,null,null,null,null,null,null,null,null,null,null,null,null,null,null,"Vorrunde",null,null,null,null,null,null,null,null,null,null,null,null,null,null,{"$f":"TODAY()-183","v":"2018-02-11"},null,null,null,null,null,null,null,null,null,null,"/",null,null,{"$f":"DR4+365","v":"2019-02-11"}]
[]
[null,null,null,null,null,null,null,null,null,null," Herren",null,null,null,null,null,null,null,null,null,null,null,null,null,null,null,null,null," Jungen",null,null,null,null,null,null,null,null,null,null,null,null,null,null,null,null,null,null,null,null,null,null,null,null,null,null,null,null,null,null,null,null,null,null,null,null,null,null,null,null,null,null,null,null,null,null,null,null,null,null,null,null,null,null,null,null,null,null,null,null,null,null,null,null,null,null,null,null,null,null,null,null,null,null,null,null,null,"Rückrunde"]
[null,null,null,null,null,null,null,null,null,null,null,null,null,null,null,null,null,null,null,null,null,null,null,null,null,null,null,null,null,null,null,null,null,null,null,null,null,null,null,null,null,null,null,null,null,null,null,null,null,null,null,null,null,null,null,null,null,null,null,null,null,"gegen",null,null,null,null,null,null,null,null,null,null,null,null,null,null,null,null,null,null,null,null,null,null,null,null,null,null,null,null,null,null,null,null,null,null,null,null,null,null,null,null,null,null,null,null,null,null,null,null,null,null,null,null,null,null,null,null,null,null,null,null,null,null,null,null,null,null,null,null,{"$f":"EI30","v":""},null,null,null,null,null,null,":",null,{"$f":"EM30","v":""},null,null,null,null,null,null,{"$f":"IF(EI30=EM30,\"\",IF(EI30>EM30,G7,BU7))","v":""}]
[null,null,null,null,null,null,"Heimmannschaft  ( A )",null,null,null,null,null,null,null,null,null,null,null,null,null,null,null,null,null,null,null,null,null,null,null,null,null,null,null,null,null,null,null,null,null,null,null,null,null,null,null,206,null,null,null,null,null,null,null,0,null,null,null,null,null,null,null,null,null,null,null,null,null,null,null,null,null,{"$f":"AU8","v":206},null,null,null,null,null,null,null,0,null,null,null,null,null,null,"Gastmannschaft  ( B )",null,null,null,null,null,null,null,null,null,null,null,null,null,null,null,null,null,null,null,null,null,null,null,null,null,null,null,null,null,null,null,null,null,null,null,null,null,null,null,null,null,null,"Endergebnis",null,null,null,null,null,null,null,null,null,null,null,null,null,null,null,{"$f":"IF(BL34=\"\",\"\",IF(EI30=EM30,EQ14))","v":""}]
[null,null,null,null,null,null,null,null,null,null,null,null,null,null,null,null,null,null,null,null,null,null,null,null,null,null,null,null,null,null,null,null,null,null,null,null,null,null,null,null,null,null,null,null,null,null,"Vereins-Nr.",null,null,null,null,null,null,null,null,null,null,null,null,null,null,null,null,null,null,null,null,null,null,null,null,null,"Vereins-Nr."]
[null,null,null,null,null,null,"Mannschaftsaufstellung"]
[null,null,null,null,null,null,"Rang",null,null,null,null,null,null,null,"Heimverein ( Mannschaft A )",null,null,null,null,null,null,null,null,null,null,null,null,null,null,null,null,null,null,null,null,null,null,null,null,null,null,null,null,null,null,null,null,null,null,null,null,null,null,null,null,null,null,null,null,null,null,null,null,null,null,null,null,"Pos.",null,null,null,null,null,null,null,null,null,"Rang",null,null,null,null,null,null,null,"Gastverein ( Mannschaft B )",null,null,null,null,null,null,null,null,null,null,null,null,null,null,null,null,null,null,null,null,null,null,null,null,null,null,null,null,null,null,null,null,null,null,null,null,null,null,null,null,null,null,null,null,null,null,null,null,null,null,null,null,"Pos."]
[null,null,null,null,null,null,"E I N Z E L",null,null,null,"A1",null,null,null,null,null,null,null,null,null,null,null,null,null,null,null,null,null,null,null,null,null,null,null,null,null,null,null,null,null,null,null,null,null,null,null,null,null,null,null,null,null,null,null,null,null,null,null,null,null,null,null,null,null,null,null,null,null,null,null,null,null,null,null,null,null,null,"E I N Z E L",null,null,null,"B1",null,null,null,null,null,null,null,null,null,null,null,null,null,null,null,null,null,null,null,null,null,null,null,null,null,null,null,null,null,null,null,null,null,null,null,null,null,null,null,null,null,null,null,null,null,null,null,null,null,null,null,null,null,null,null,null,null,null,null,null,null,null,null,null,{"$f":"IF(EI30<>EM30,EQ7,EQ8)","v":""}]
[null,null,null,null,null,null,null,null,null,null,"A2",null,null,null,null,null,null,null,null,null,null,null,null,null,null,null,null,null,null,null,null,null,null,null,null,null,null,null,null,null,null,null,null,null,null,null,null,null,null,null,null,null,null,null,null,null,null,null,null,null,null,null,null,null,null,null,null,null,null,null,null,null,null,null,null,null,null,null,null,null,null,"B2",null,null,null,null,null,null,null,null,null,null,null,null,null,null,null,null,null,null,null,null,null,null,null,null,null,null,null,null,null,null,null,null,null,null,null,null,null,null,null,null,null,null,null,null,null,null,null,null,null,null,null,null,null,null,null,null,null,null,null,null,null,null,null,null,"Sieger"]
[null,null,null,null,null,null,null,null,null,null,"A3",null,null,null,null,null,null,null,null,null,null,null,null,null,null,null,null,null,null,null,null,null,null,null,null,null,null,null,null,null,null,null,null,null,null,null,null,null,null,null,null,null,null,null,null,null,null,null,null,null,null,null,null,null,null,null,null,null,null,null,null,null,null,null,null,null,null,null,null,null,null,"B3",null,null,null,null,null,null,null,null,null,null,null,null,null,null,null,null,null,null,null,null,null,null,null,null,null,null,null,null,null,null,null,null,null,null,null,null,null,null,null,null,null,null,null,null,null,null,null,null,null,null,null,null,null,null,null,null,null,null,null,null,null,null,null,null,"Unentschieden"]
[null,null,null,null,null,null,null,null,null,null,null,null,null,null,null,null,null,null,null,null,null,null,null,null,null,null,null,null,null,null,null,null,null,null,null,null,null,null,null,null,null,null,null,null,null,null,null,null,null,null,null,null,null,null,null,null,null,null,null,null,null,null,null,null,null,null,null,null,null,null,null,null,null,null,null,null,null,null,null,null,null,"B4"]
[null,null,null,null,null,null,"D",null,null,null,"A1",null,null,null,null,null,null,null,null,null,null,null,null,null,null,null,null,null,null,null,null,null,null,null,null,null,null,null,null,null,null,null,null,"/",null,null,null,null,null,null,null,null,null,null,null,null,null,null,null,null,null,null,null,null,null,null,null,null,null,null,null,null,null,null,null,null,null,"D",null,null,null,"B1",null,null,null,null,null,null,null,null,null,null,null,null,null,null,null,null,null,null,null,null,null,null,null,null,null,null,null,null,null,null,null,null,"/"]
[]
[null,null,null,null,null,null,"Spielfolge",null,null,null,null,null,null,null,null,null,"Heimverein ( Mannschaft A )",null,null,null,null,null,null,null,null,null,null,null,null,null,null,null,null,null,null,null,null,null,null,null,null,null,null,null,null,null,null,"Gastverein ( Mannschaft B )",null,null,null,null,null,null,null,null,null,null,null,null,null,null,null,null,null,null,null,null,null,null,null,null,null,null,null,null,null,null,"1. Satz",null,null,null,null,null,null,null,null,null,"2. Satz",null,null,null,null,null,null,null,null,null,"3. Satz",null,null,null,null,null,null,null,null,null,"4. Satz",null,null,null,null,null,null,null,null,null,"5. Satz",null,null,null,null,null,null,null,null,null,"Sätze",null,null,null,null,null,null,null,null,null,"Spiele",null,null,null,null,null,null,null,{"$f":"G7","v":0}]
[null,null,null,null,null,null,"Doppel",null,null,null,null,null,null,null,null,null,null,{"$f":"O16","v":0},null,null,null,null,null,null,null,null,null,null,null,null,null,null,null,null,null,null,null,null,null,null,null,null,null,null,null,null,null,null,{"$f":"CH16","v":0},null,null,null,null,null,null,null,null,null,null,null,null,null,null,null,null,null,null,null,null,null,null,null,null,null,null,null,null,null,null,null,null,null,null,null,null,null,null,null,null,null,null,null,null,null,null,null,null,null,null,null,null,null,null,null,null,null,null,null,null,null,null,null,null,null,null,null,null,null,null,null,null,null,null,null,null,null,null,null,{"$f":"IF(CA19=\"\",\"\",IF(CA19>CF19,1,0)+IF(CK19>CP19,1,0)+IF(CU19>CZ19,1,0)+IF(DE19>DJ19,1,0)+IF(DO19>DT19,1,0))","v":""},null,null,null,null,{"$f":"IF(CA19=\"\",\"\",IF(CA19<CF19,1,0)+IF(CK19<CP19,1,0)+IF(CU19<CZ19,1,0)+IF(DE19<DJ19,1,0)+IF(DO19<DT19,1,0))","v":""},null,null,null,null,{"$f":"IF(DY19=\"\",\"\",IF(DY19>ED19,1,0))","v":""},null,null,null,{"$f":"IF(DY19=\"\",\"\",IF(DY19<ED19,1,0))","v":""},null,null,null,{"$f":"SUM(CA19:CE29)","v":0},{"$f":"IF(DY19=3,1,0)","v":0},{"$f":"IF(ED19=3,1,0)","v":0}]
[null,null,null,null,null,null,"A1 - B1",null,null,null,null,null,null,null,null,null,null,{"$f":"AU16","v":0},null,null,null,null,null,null,null,null,null,null,null,null,null,null,null,null,null,null,null,null,null,null,null,null,null,null,null,null,null,null,{"$f":"DN16","v":0},null,null,null,null,null,null,null,null,null,null,null,null,null,null,null,null,null,null,null,null,null,null,null,null,null,null,null,null,null,null,null,null,null,null,null,null,null,null,null,null,null,null,null,null,null,null,null,null,null,null,null,null,null,null,null,null,null,null,null,null,null,null,null,null,null,null,null,null,null,null,null,null,null,null,null,null,null,null,null,null,null,null,null,null,null,null,null,null,null,null,null,null,null,null,null,null,null,{"$f":"SUM(CK19:CO29)","v":0}]
[null,null,null,null,null,null,"E",null,null,"A3-B3",null,null,null,null,null,null,{"$f":"O14","v":0},null,null,null,null,null,null,null,null,null,null,null,null,null,null,null,null,null,null,null,null,null,null,null,null,null,null,null,null,null,null,{"$f":"CH14","v":0},null,null,null,null,null,null,null,null,null,null,null,null,null,null,null,null,null,null,null,null,null,null,null,null,null,null,null,null,null,null,null,null,null,null,null,null,null,null,null,null,null,null,null,null,null,null,null,null,null,null,null,null,null,null,null,null,null,null,null,null,null,null,null,null,null,null,null,null,null,null,null,null,null,null,null,null,null,null,null,null,{"$f":"IF(CA21=\"\",\"\",IF(CA21>CF21,1,0)+IF(CK21>CP21,1,0)+IF(CU21>CZ21,1,0)+IF(DE21>DJ21,1,0)+IF(DO21>DT21,1,0))","v":""},null,null,null,null,{"$f":"IF(CA21=\"\",\"\",IF(CA21<CF21,1,0)+IF(CK21<CP21,1,0)+IF(CU21<CZ21,1,0)+IF(DE21<DJ21,1,0)+IF(DO21<DT21,1,0))","v":""},null,null,null,null,{"$f":"IF(DY21=\"\",\"\",IF(DY21>ED21,1,0))","v":""},null,null,null,{"$f":"IF(DY21=\"\",\"\",IF(DY21<ED21,1,0))","v":""},null,null,null,{"$f":"SUM(CU19:CY29)","v":0},{"$f":"IF(DY21=3,1,0)","v":0},{"$f":"IF(ED21=3,1,0)","v":0}]
[null,null,null,null,null,null,"E",null,null,"A2-B1",null,null,null,null,null,null,{"$f":"O13","v":0},null,null,null,null,null,null,null,null,null,null,null,null,null,null,null,null,null,null,null,null,null,null,null,null,null,null,null,null,null,null,{"$f":"CH12","v":0},null,null,null,null,null,null,null,null,null,null,null,null,null,null,null,null,null,null,null,null,null,null,null,null,null,null,null,null,null,null,null,null,null,null,null,null,null,null,null,null,null,null,null,null,null,null,null,null,null,null,null,null,null,null,null,null,null,null,null,null,null,null,null,null,null,null,null,null,null,null,null,null,null,null,null,null,null,null,null,null,"",null,null,null,null,"",null,null,null,null,"",null,null,null,"",null,null,null,{"$f":"SUM(DE19:DI29)","v":0},0,0]
[null,null,null,null,null,null,"E",null,null,"A1-B2",null,null,null,null,null,null,{"$f":"O12","v":0},null,null,null,null,null,null,null,null,null,null,null,null,null,null,null,null,null,null,null,null,null,null,null,null,null,null,null,null,null,null,{"$f":"CH13","v":0},null,null,null,null,null,null,null,null,null,null,null,null,null,null,null,null,null,null,null,null,null,null,null,null,null,null,null,null,null,null,null,null,null,null,null,null,null,null,null,null,null,null,null,null,null,null,null,null,null,null,null,null,null,null,null,null,null,null,null,null,null,null,null,null,null,null,null,null,null,null,null,null,null,null,null,null,null,null,null,null,"",null,null,null,null,"",null,null,null,null,"",null,null,null,"",null,null,null,{"$f":"SUM(DO19:DS29)","v":0},0,0]
[null,null,null,null,null,null,"E",null,null,"A2-B4",null,null,null,null,null,null,{"$f":"O13","v":0},null,null,null,null,null,null,null,null,null,null,null,null,null,null,null,null,null,null,null,null,null,null,null,null,null,null,null,null,null,null,{"$f":"CH15","v":0},null,null,null,null,null,null,null,null,null,null,null,null,null,null,null,null,null,null,null,null,null,null,null,null,null,null,null,null,null,null,null,null,null,null,null,null,null,null,null,null,null,null,null,null,null,null,null,null,null,null,null,null,null,null,null,null,null,null,null,null,null,null,null,null,null,null,null,null,null,null,null,null,null,null,null,null,null,null,null,null,"",null,null,null,null,"",null,null,null,null,"",null,null,null,"",null,null,null,{"$f":"SUM(EQ19:EQ23)","v":0},0,0]
[null,null,null,null,null,null,"E",null,null,"A1-B1",null,null,null,null,null,null,{"$f":"O12","v":0},null,null,null,null,null,null,null,null,null,null,null,null,null,null,null,null,null,null,null,null,null,null,null,null,null,null,null,null,null,null,{"$f":"CH12","v":0},null,null,null,null,null,null,null,null,null,null,null,null,null,null,null,null,null,null,null,null,null,null,null,null,null,null,null,null,null,null,null,null,null,null,null,null,null,null,null,null,null,null,null,null,null,null,null,null,null,null,null,null,null,null,null,null,null,null,null,null,null,null,null,null,null,null,null,null,null,null,null,null,null,null,null,null,null,null,null,null,"",null,null,null,null,"",null,null,null,null,"",null,null,null,"",null,null,null,{"$f":"BU7","v":0},0,0]
[null,null,null,null,null,null,"E",null,null,"A3-B4",null,null,null,null,null,null,{"$f":"O14","v":0},null,null,null,null,null,null,null,null,null,null,null,null,null,null,null,null,null,null,null,null,null,null,null,null,null,null,null,null,null,null,{"$f":"CH15","v":0},null,null,null,null,null,null,null,null,null,null,null,null,null,null,null,null,null,null,null,null,null,null,null,null,null,null,null,null,null,null,null,null,null,null,null,null,null,null,null,null,null,null,null,null,null,null,null,null,null,null,null,null,null,null,null,null,null,null,null,null,null,null,null,null,null,null,null,null,null,null,null,null,null,null,null,null,null,null,null,null,"",null,null,null,null,"",null,null,null,null,"",null,null,null,"",null,null,null,{"$f":"SUM(CF19:CJ29)","v":0},0,0]
[null,null,null,null,null,null,"E",null,null,"A2-B2",null,null,null,null,null,null,{"$f":"O13","v":0},null,null,null,null,null,null,null,null,null,null,null,null,null,null,null,null,null,null,null,null,null,null,null,null,null,null,null,null,null,null,{"$f":"CH13","v":0},null,null,null,null,null,null,null,null,null,null,null,null,null,null,null,null,null,null,null,null,null,null,null,null,null,null,null,null,null,null,null,null,null,null,null,null,null,null,null,null,null,null,null,null,null,null,null,null,null,null,null,null,null,null,null,null,null,null,null,null,null,null,null,null,null,null,null,null,null,null,null,null,null,null,null,null,null,null,null,null,"",null,null,null,null,"",null,null,null,null,"",null,null,null,"",null,null,null,{"$f":"SUM(CP19:CT29)","v":0},0,0]
[null,null,null,null,null,null,"E",null,null,"A3-B1",null,null,null,null,null,null,{"$f":"O14","v":0},null,null,null,null,null,null,null,null,null,null,null,null,null,null,null,null,null,null,null,null,null,null,null,null,null,null,null,null,null,null,{"$f":"CH12","v":0},null,null,null,null,null,null,null,null,null,null,null,null,null,null,null,null,null,null,null,null,null,null,null,null,null,null,null,null,null,null,null,null,null,null,null,null,null,null,null,null,null,null,null,null,null,null,null,null,null,null,null,null,null,null,null,null,null,null,null,null,null,null,null,null,null,null,null,null,null,null,null,null,null,null,null,null,null,null,null,null,"",null,null,null,null,"",null,null,null,null,"",null,null,null,"",null,null,null,{"$f":"SUM(CZ19:DD29)","v":0},0,0]
[null,null,null,null,null,null,"E",null,null,"A1-B3",null,null,null,null,null,null,{"$f":"O12","v":0},null,null,null,null,null,null,null,null,null,null,null,null,null,null,null,null,null,null,null,null,null,null,null,null,null,null,null,null,null,null,{"$f":"CH14","v":0},null,null,null,null,null,null,null,null,null,null,null,null,null,null,null,null,null,null,null,null,null,null,null,null,null,null,null,null,null,null,null,null,null,null,null,null,null,null,null,null,null,null,null,null,null,null,null,null,null,null,null,null,null,null,null,null,null,null,null,null,null,null,null,null,null,null,null,null,null,null,null,null,null,null,null,null,null,null,null,null,"",null,null,null,null,"",null,null,null,null,"",null,null,null,"",null,null,null,{"$f":"SUM(DJ19:DN29)","v":0},0,0]
[null,null,null,null,null,null,null,null,null,null,null,null,null,null,null,null,null,null,null,null,null,null,null,null,null,null,null,null,null,null,null,null,null,null,null,null,null,null,null,null,null,null,null,null,null,null,null,null,null,null,null,null,null,null,null,null,null,null,null,null,null,null,null,null,null,null,null,null,null,null,null,null,null,null,null,null,null,null,null,null,null,null,null,null,null,null,null,null,null,null,null,null,null,null,null,null,null,null,null,null,null,null,null,null,null,null,null,null,null,null,null,null,null,null,null,null,null,null,null,null,null,null,null,null,null,null,null,null,{"$f":"IF(DY19=\"\",\"\",SUM(DY19:EC29))","v":""},null,null,null,null,{"$f":"IF(ED19=\"\",\"\",SUM(ED19:EH29))","v":""},null,null,null,null,{"$f":"IF(EI19=\"\",\"\",SUM(EI19:EL29))","v":""},null,null,null,{"$f":"IF(EM19=\"\",\"\",SUM(EM19:EP29))","v":""},null,null,null,{"$f":"SUM(DT19:DX29)","v":0}]
[null,null,null,null,null,null,"Spielbeginn :",null,null,null,null,null,null,null,null,null,null,null,null,null,null,null,null,null,null,null,null,null,null,null,null,"Uhr",null,null,null,null,null,null,null,null,null,"Spielende :",null,null,null,null,null,null,null,null,null,null,null,null,null,null,null,null,null,null,null,null,null,null,null,null,"Uhr",null,null,null,null,null,null,null,null,null,null,null,null,null,null,null,null,null,null,null,null,null,{"$f":"EQ24","v":0},null,null,null,null,null,":",null,{"$f":"EQ31","v":0},null,null,null,null,null," Bälle",null,null,null,null,null,null,null,null,null,null,null,null,null,null,null,null,null,null,null,null,null,null,null,null,null,null,null,null,null,null,null,null,null,null,null,null,null,null,null,null,null,null,null,{"$f":"SUM(EQ26:EQ30)","v":0},{"$f":"SUM(ER19:ER29)","v":0},{"$f":"SUM(ES19:ES29)","v":0}]
[]
[]
[null,null,null,null,null,null,{"$f":"IF(BL34=BS34,\"\",IF(BL34>BS34,EQ13,EQ15))","v":""},null,null,null,null,null,null,null,null,null,null,":",null,{"$f":"EQ12","v":""},null,null,null,null,null,null,null,null,null,null,null,null,null,null,null,null,null,null,null,null,null,null,null,null,null,null,null,null,null,null,null,null,null,null,null,null,"mit :",null,null,null,null,null,null,{"$f":"IF(EI30>EM30,EI30,EM30)","v":""},null,null,null,null,":",null,{"$f":"IF(EI30<EM30,EI30,EM30)","v":""},null,null,null,null,"Spielen",null,null,null,null,null,null,null,null,null,null,null,"und",null,null,null,null,null,null,{"$f":"IF(EI30>=EM30,DY30,ED30)","v":""},null,null,null,null,":",null,{"$f":"IF(EI30<EM30,DY30,ED30)","v":""},null,null,null,null,"Sätzen",null,null,null,null,null,null,null,null,null,null,"und",null,null,null,null,null,null,{"$f":"IF(EI30>=EM30,EQ24,EQ31)","v":0},null,null,null,null,null,":",null,{"$f":"IF(EI30<EM30,EQ24,EQ31)","v":0},null,null,null,null,null," Bälle"]
[]
[null,null,null,null,null,null,"Spielort",null,null,null,null,null,null,null,null,":",null,null,null,null,null,null,null,null,null,null,null,null,null,null,null,null,null,null,null,null,null,null,null,null,null,null,null,null,null,null,null,null,null,null,null,null,null,null,null,null,null,null,null,null,null,null,null,null,null,null,null,{"$f":"G7","v":0},null,null,null,null,null,null,null,null,null,null,null,null,null,null,null,null,null,null,null,null,null,"Unterschriften Mannschaftsführer",null,null,null,null,null,null,null,null,null,null,null,null,null,null,null,null,null,null,null,null,null,null,null,null,null,null,null,null,null,null,null,null,null,null,{"$f":"BU7","v":0}]
[]
[]
[]
[]
[null,null,null,null,null,null,"Datum",null,null,null,null,null,null,null,null,":",null,{"$f":"TODAY()","v":"2018-08-13"}]
[]
[]
[]
[]
[]
[null,null,null,null,null,null,null,null,null,null,null,"kein Protest"]
[null,null,null,null,null,null,null,null,null,null,null,null,null,null,null,null,null,null,null,null,null,null,null,null,null,null,null,null,null,null,null,null,null,null,null,null,null,null,null,null,null,null,null,{"$f":"T2","v":"TT-Berzirk 6"}]
[]
[]
[null,null,null,null,null,null,null,null,null,null,null,null,null,null,null,null,null,null,null,null,null,null,null,null,null,null,null,null,null,null,null,null,null,null,null,null,null,null,null,null,null,null,null,{"$f":"AZ2","v":"Oberfranken Ost"}]
[null,null,null,null,null,null,null,null,null,null,null,"Protest - siehe Anlage"]
[null,null,null,null,null,null,null,null,null,null,null,null,null,null,null,null,null,null,null,null,null,null,null,null,null,null,null,null,null,null,null,null,null,null,null,null,null,null,null,null,null,null,null,null,{"$f":"CP2","v":"Bezirks-"}]
[null,null,null,null,null,null,null,null,null,null,null,null,null,null,null,null,null,null,null,null,null,null,null,null,null,null,null,null,null,null,null,null,null,null,null,null,null,null,null,null,null,null,null,null,null,null,null,null,null,null,null,null,null,null,null,null,null,null,null,null,null,null,null,null,null,null,null,"Mf.:",null,null,null,null,null,null,null,null,null,null,null,null,null,null,null,null,null,null,null,null,null,null,null,null,null,null,null,null,null,null,null,null,null,null,null,null,null,null,null,null,"Mf.:"]
[]
[]
[]
[null,null,null,null,null,null," Staffelleiter",null,null,null,null,null,null,null,null,null,null,null,null,null,null,null,null,null,":",null,null,null,null,null,null,null,null,null,null,null,null,null,null,null,null,null,null,null,null,null,null,null,"Tel.-Nr.:",null,null,null,null,null,null,null,null,null,null,null,null,null,null,null,null,null,null,null,null,null,null,null,null,"Mobil:",null,null,null,null,null,null,null,null,null,null,null,null,null,null,null,null,null,null,null,null,null,null,"Email:"]
[null,null,null,null,null,null," Mannschaftsführer",null,null,null,null,null,null,null,null,null,null,null,null,null,null,null,null,null,":",null,null,null,null,null,null,null,null,null,null,null,null,null,null,null,null,null,null,null,null,null,null,null,"Tel.-Nr.:",null,null,null,null,null,null,null,null,null,null,null,null,null,null,null,null,null,null,null,null,null,null,null,null,"Mobil:",null,null,null,null,null,null,null,null,null,null,null,null,null,null,null,null,null,null,null,null,null,null,"Email:"]
["creadet by Gerhard Nidetzky"]

{"sheet":"SpSt.3g4","index":1,"n_rows":8,"n_cols":83,"rows_kept":8,"cut":false,"hidden":false,"merged":[[28,10,30,91],[0,82,1,91],[2,82,3,91],[4,10,27,14],[4,15,6,48],[4,49,6,52],[4,53,6,86],[4,87,27,91],[7,15,27,47],[0,51,3,52],[0,53,3,61],[0,62,3,81],[2,10,3,12],[2,13,3,21],[0,10,1,12],[0,13,1,21],[0,22,1,24],[0,25,1,34],[7,48,27,53],[7,54,27,86],[0,35,1,37],[0,42,3,50],[2,22,3,24],[2,25,3,34],[2,35,3,37],[2,38,3,41],[0,38,1,41]]}
[null,null,null,null,null,null,null,null,null,null,{"$f":"'3g4'!G4","v":0},null,null," Damen",null,null,null,null,null,null,null,null,{"$f":"'3g4'!Y4","v":0},null,null," Mädchen",null,null,null,null,null,null,null,null,null,{"$f":"'3g4'!Y4","v":0},null,null,"VR",null,null,null,{"$f":"'3g4'!DR4","v":"2018-02-11"},null,null,null,null,null,null,null,null,"/",null,{"$f":"'3g4'!EF4","v":"2019-02-11"},null,null,null,null,null,null,null,null,{"$f":"'3g4'!CP2","v":"Bezirks-"},null,null,null,null,null,null,null,null,null,null,null,null,null,null,null,null,null,null,null,"Bereich"]
[]
[null,null,null,null,null,null,null,null,null,null,{"$f":"'3g4'!G6","v":0},null,null," Herren",null,null,null,null,null,null,null,null,{"$f":"'3g4'!Y6","v":0},null,null," Jungen",null,null,null,null,null,null,null,null,null,{"$f":"'3g4'!Y6","v":0},null,null,"RR",null,null,null,null,null,null,null,null,null,null,null,null,null,null,null,null,null,null,null,null,null,null,null,null,null,null,null,null,null,null,null,null,null,null,null,null,null,null,null,null,null,null,null,{"$f":"'3g4'!AU5","v":0}]
[]
[null,null,null,null,null,null,null,null,null,null,null,null,null,null,null,{"$f":"'3g4'!G7","v":0},null,null,null,null,null,null,null,null,null,null,null,null,null,null,null,null,null,null,null,null,null,null,null,null,null,null,null,null,null,null,null,null,null,":",null,null,null,{"$f":"'3g4'!BU7","v":0}]
[]
[]
[null,null,null,null,null,null,null,null,null,null,null,null,null,null,null,{"$f":"'3g4'!ER31","v":0},null,null,null,null,null,null,null,null,null,null,null,null,null,null,null,null,null,null,null,null,null,null,null,null,null,null,null,null,null,null,null,null,":",null,null,null,null,null,{"$f":"'3g4'!ES31","v":0}]

{"sheet":"Spielleiter","index":2,"n_rows":37,"n_cols":104,"rows_kept":37,"cut":false,"hidden":false,"merged":[[36,96,36,102],[36,103,36,145],[36,6,36,23],[36,25,36,47],[36,48,36,55],[36,56,36,72],[36,73,36,78],[36,79,36,95],[33,96,33,102],[33,103,33,145],[35,6,35,23],[35,25,35,47],[35,48,35,55],[35,56,35,72],[35,73,35,78],[35,79,35,95],[35,96,35,102],[35,103,35,145],[33,6,33,23],[33,25,33,47],[33,48,33,55],[33,56,33,72],[33,73,33,78],[33,79,33,95],[30,96,30,102],[30,103,30,145],[32,6,32,23],[32,25,32,47],[32,48,32,55],[32,56,32,72],[32,73,32,78],[32,79,32,95],[32,96,32,102],[32,103,32,145],[30,6,30,23],[30,25,30,47],[30,48,30,55],[30,56,30,72],[30,73,30,78],[30,79,30,95],[27,96,27,102],[27,103,27,145],[29,6,29,23],[29,25,29,47],[29,48,29,55],[29,56,29,72],[29,73,29,78],[29,79,29,95],[29,96,29,102],[29,103,29,145],[27,6,27,23],[27,25,27,47],[27,48,27,55],[27,56,27,72],[27,73,27,78],[27,79,27,95],[24,96,24,102],[24,103,24,145],[26,6,26,23],[26,25,26,47],[26,48,26,55],[26,56,26,72],[26,73,26,78],[26,79,26,95],[26,96,26,102],[26,103,26,145],[24,6,24,23],[24,25,24,47],[24,48,24,55],[24,56,24,72],[24,73,24,78],[24,79,24,95],[21,96,21,102],[21,103,21,145],[23,6,23,23],[23,25,23,47],[23,48,23,55],[23,56,23,72],[23,73,23,78],[23,79,23,95],[23,96,23,102],[23,103,23,145],[21,6,21,23],[21,25,21,47],[21,48,21,55],[21,56,21,72],[21,73,21,78],[21,79,21,95],[18,96,18,102],[18,103,18,145],[20,6,20,23],[20,25,20,47],[20,48,20,55],[20,56,20,72],[20,73,20,78],[20,79,20,95],[20,96,20,102],[20,103,20,145],[18,6,18,23],[18,25,18,47],[18,48,18,55],[18,56,18,72],[18,73,18,78],[18,79,18,95],[15,96,15,102],[15,103,15,145],[17,6,17,23],[17,25,17,47],[17,48,17,55],[17,56,17,72],[17,73,17,78],[17,79,17,95],[17,96,17,102],[17,103,17,145],[15,6,15,23],[15,25,15,47],[15,48,15,55],[15,56,15,72],[15,73,15,78],[15,79,15,95],[12,96,12,102],[12,103,12,145],[14,6,14,23],[14,25,14,47],[14,48,14,55],[14,56,14,72],[14,73,14,78],[14,79,14,95],[14,96,14,102],[14,103,14,145],[12,6,12,23],[12,25,12,47],[12,48,12,55],[12,56,12,72],[12,73,12,78],[12,79,12,95],[9,96,9,102],[9,103,9,145],[11,6,11,23],[11,25,11,47],[11,48,11,55],[11,56,11,72],[11,73,11,78],[11,79,11,95],[11,96,11,102],[11,103,11,145],[9,6,9,23],[9,25,9,47],[9,48,9,55],[9,56,9,72],[9,73,9,78],[9,79,9,95],[6,96,6,102],[6,103,6,145],[8,6,8,23],[8,25,8,47],[8,48,8,55],[8,56,8,72],[8,73,8,78],[8,79,8,95],[8,96,8,102],[8,103,8,145],[6,6,6,23],[6,25,6,47],[6,48,6,55],[6,56,6,72],[6,73,6,78],[6,79,6,95],[3,96,3,102],[3,103,3,145],[5,6,5,23],[5,25,5,47],[5,48,5,55],[5,56,5,72],[5,73,5,78],[5,79,5,95],[5,96,5,102],[5,103,5,145],[3,6,3,23],[3,25,3,47],[3,48,3,55],[3,56,3,72],[3,73,3,78],[3,79,3,95],[1,0,1,145],[2,6,2,23],[2,25,2,47],[2,48,2,55],[2,56,2,72],[2,73,2,78],[2,79,2,95],[2,96,2,102],[2,103,2,145]]}
[]
[]
[null,null,null,null,null,null," Staffelleiter",null,null,null,null,null,null,null,null,null,null,null,null,null,null,null,null,null,":","Daniel Geßenich",null,null,null,null,null,null,null,null,null,null,null,null,null,null,null,null,null,null,null,null,null,null,"Tel.-Nr.:",null,null,null,null,null,null,null,null,null,null,null,null,null,null,null,null,null,null,null,null,null,null,null,null,"Mobil:",null,null,null,null,null,"0176-27425593",null,null,null,null,null,null,null,null,null,null,null,null,null,null,null,null,"Email:",null,null,null,null,null,null,"daniel.gessenich@ttbezirk6.de"]
[null,null,null,null,null,null,"Mannschaftsführer",null,null,null,null,null,null,null,null,null,null,null,null,null,null,null,null,null,":",null,null,null,null,null,null,null,null,null,null,null,null,null,null,null,null,null,null,null,null,null,null,null,"Tel.-Nr.:",null,null,null,null,null,null,null,null,null,null,null,null,null,null,null,null,null,null,null,null,null,null,null,null,"Mobil:",null,null,null,null,null,null,null,null,null,null,null,null,null,null,null,null,null,null,null,null,null,null,"Email:"]
[]
[null,null,null,null,null,null," Staffelleiter",null,null,null,null,null,null,null,null,null,null,null,null,null,null,null,null,null,":","Edgar Kraus",null,null,null,null,null,null,null,null,null,null,null,null,null,null,null,null,null,null,null,null,null,null,"Tel.-Nr.:",null,null,null,null,null,null,null,"09261-4644",null,null,null,null,null,null,null,null,null,null,null,null,null,null,null,null,"Mobil:",null,null,null,null,null,"0151-54042886",null,null,null,null,null,null,null,null,null,null,null,null,null,null,null,null,"Email:",null,null,null,null,null,null,"edgar.kraus@ttbezirk6.de"]
[null,null,null,null,null,null,"Mannschaftsführer",null,null,null,null,null,null,null,null,null,null,null,null,null,null,null,null,null,":",null,null,null,null,null,null,null,null,null,null,null,null,null,null,null,null,null,null,null,null,null,null,null,"Tel.-Nr.:",null,null,null,null,null,null,null,null,null,null,null,null,null,null,null,null,null,null,null,null,null,null,null,null,"Mobil:",null,null,null,null,null,null,null,null,null,null,null,null,null,null,null,null,null,null,null,null,null,null,"Email:"]
[]
[null,null,null,null,null,null," Staffelleiter",null,null,null,null,null,null,null,null,null,null,null,null,null,null,null,null,null,":","Thomas Wahl",null,null,null,null,null,null,null,null,null,null,null,null,null,null,null,null,null,null,null,null,null,null,"Tel.-Nr.:",null,null,null,null,null,null,null,"09254-1666",null,null,null,null,null,null,null,null,null,null,null,null,null,null,null,null,"Mobil:",null,null,null,null,null,"0175-2621052",null,null,null,null,null,null,null,null,null,null,null,null,null,null,null,null,"Email:",null,null,null,null,null,null,"thomas.wahl63@ttbezirk6.de"]
[null,null,null,null,null,null,"Mannschaftsführer",null,null,null,null,null,null,null,null,null,null,null,null,null,null,null,null,null,":",null,null,null,null,null,null,null,null,null,null,null,null,null,null,null,null,null,null,null,null,null,null,null,"Tel.-Nr.:",null,null,null,null,null,null,null,null,null,null,null,null,null,null,null,null,null,null,null,null,null,null,null,null,"Mobil:",null,null,null,null,null,null,null,null,null,null,null,null,null,null,null,null,null,null,null,null,null,null,"Email:"]
[]
[null,null,null,null,null,null," Staffelleiter",null,null,null,null,null,null,null,null,null,null,null,null,null,null,null,null,null,":","Peter Hoffmann",null,null,null,null,null,null,null,null,null,null,null,null,null,null,null,null,null,null,null,null,null,null,"Tel.-Nr.:",null,null,null,null,null,null,null,null,null,null,null,null,null,null,null,null,null,null,null,null,null,null,null,null,"Mobil:",null,null,null,null,null,null,null,null,null,null,null,null,null,null,null,null,null,null,null,null,null,null,"Email:",null,null,null,null,null,null,"peter.hoffmann@ttbezirk6.de"]
[null,null,null,null,null,null,"Mannschaftsführer",null,null,null,null,null,null,null,null,null,null,null,null,null,null,null,null,null,":",null,null,null,null,null,null,null,null,null,null,null,null,null,null,null,null,null,null,null,null,null,null,null,"Tel.-Nr.:",null,null,null,null,null,null,null,null,null,null,null,null,null,null,null,null,null,null,null,null,null,null,null,null,"Mobil:",null,null,null,null,null,null,null,null,null,null,null,null,null,null,null,null,null,null,null,null,null,null,"Email:"]
[]
[null,null,null,null,null,null," Staffelleiter",null,null,null,null,null,null,null,null,null,null,null,null,null,null,null,null,null,":","Sebastian Kaske",null,null,null,null,null,null,null,null,null,null,null,null,null,null,null,null,null,null,null,null,null,null,"Tel.-Nr.:",null,null,null,null,null,null,null,null,null,null,null,null,null,null,null,null,null,null,null,null,null,null,null,null,"Mobil:",null,null,null,null,null,"0160/99704271",null,null,null,null,null,null,null,null,null,null,null,null,null,null,null,null,"Email:",null,null,null,null,null,null,"sebastian.kaske@ttbezirk6.de"]
[null,null,null,null,null,null,"Mannschaftsführer",null,null,null,null,null,null,null,null,null,null,null,null,null,null,null,null,null,":",null,null,null,null,null,null,null,null,null,null,null,null,null,null,null,null,null,null,null,null,null,null,null,"Tel.-Nr.:",null,null,null,null,null,null,null,null,null,null,null,null,null,null,null,null,null,null,null,null,null,null,null,null,"Mobil:",null,null,null,null,null,null,null,null,null,null,null,null,null,null,null,null,null,null,null,null,null,null,"Email:"]
[]
[null,null,null,null,null,null," Staffelleiter",null,null,null,null,null,null,null,null,null,null,null,null,null,null,null,null,null,":","Günther Hanna",null,null,null,null,null,null,null,null,null,null,null,null,null,null,null,null,null,null,null,null,null,null,"Tel.-Nr.:",null,null,null,null,null,null,null,"09261-20295",null,null,null,null,null,null,null,null,null,null,null,null,null,null,null,null,"Mobil:",null,null,null,null,null,"0173 294 2773",null,null,null,null,null,null,null,null,null,null,null,null,null,null,null,null,"Email:",null,null,null,null,null,null,"guenther.hanna@ttbezirk6.de"]
[null,null,null,null,null,null,"Mannschaftsführer",null,null,null,null,null,null,null,null,null,null,null,null,null,null,null,null,null,":",null,null,null,null,null,null,null,null,null,null,null,null,null,null,null,null,null,null,null,null,null,null,null,"Tel.-Nr.:",null,null,null,null,null,null,null,null,null,null,null,null,null,null,null,null,null,null,null,null,null,null,null,null,"Mobil:",null,null,null,null,null,null,null,null,null,null,null,null,null,null,null,null,null,null,null,null,null,null,"Email:"]
[]
[null,null,null,null,null,null," Staffelleiter",null,null,null,null,null,null,null,null,null,null,null,null,null,null,null,null,null,":","Jan Bodenschlägel",null,null,null,null,null,null,null,null,null,null,null,null,null,null,null,null,null,null,null,null,null,null,"Tel.-Nr.:",null,null,null,null,null,null,null,null,null,null,null,null,null,null,null,null,null,null,null,null,null,null,null,null,"Mobil:",null,null,null,null,null,"0176/31754640",null,null,null,null,null,null,null,null,null,null,null,null,null,null,null,null,"Email:",null,null,null,null,null,null,"jan.bodenschlaegel@ttbezirk6.de"]
[null,null,null,null,null,null,"Mannschaftsführer",null,null,null,null,null,null,null,null,null,null,null,null,null,null,null,null,null,":",null,null,null,null,null,null,null,null,null,null,null,null,null,null,null,null,null,null,null,null,null,null,null,"Tel.-Nr.:",null,null,null,null,null,null,null,null,null,null,null,null,null,null,null,null,null,null,null,null,null,null,null,null,"Mobil:",null,null,null,null,null,null,null,null,null,null,null,null,null,null,null,null,null,null,null,null,null,null,"Email:"]
[]
[null,null,null,null,null,null," Staffelleiter",null,null,null,null,null,null,null,null,null,null,null,null,null,null,null,null,null,":","Frederic Pauli",null,null,null,null,null,null,null,null,null,null,null,null,null,null,null,null,null,null,null,null,null,null,"Tel.-Nr.:",null,null,null,null,null,null,null,"09268/913979",null,null,null,null,null,null,null,null,null,null,null,null,null,null,null,null,"Mobil:",null,null,null,null,null,"0171/3408611",null,null,null,null,null,null,null,null,null,null,null,null,null,null,null,null,"Email:",null,null,null,null,null,null,"frederic.pauli@ttbezirk6.de"]
[null,null,null,null,null,null,"Mannschaftsführer",null,null,null,null,null,null,null,null,null,null,null,null,null,null,null,null,null,":",null,null,null,null,null,null,null,null,null,null,null,null,null,null,null,null,null,null,null,null,null,null,null,"Tel.-Nr.:",null,null,null,null,null,null,null,null,null,null,null,null,null,null,null,null,null,null,null,null,null,null,null,null,"Mobil:",null,null,null,null,null,null,null,null,null,null,null,null,null,null,null,null,null,null,null,null,null,null,"Email:"]
[]
[null,null,null,null,null,null," Staffelleiter",null,null,null,null,null,null,null,null,null,null,null,null,null,null,null,null,null,":",null,null,null,null,null,null,null,null,null,null,null,null,null,null,null,null,null,null,null,null,null,null,null,"Tel.-Nr.:",null,null,null,null,null,null,null,null,null,null,null,null,null,null,null,null,null,null,null,null,null,null,null,null,"Mobil:",null,null,null,null,null,null,null,null,null,null,null,null,null,null,null,null,null,null,null,null,null,null,"Email:"]
[null,null,null,null,null,null,"Mannschaftsführer",null,null,null,null,null,null,null,null,null,null,null,null,null,null,null,null,null,":",null,null,null,null,null,null,null,null,null,null,null,null,null,null,null,null,null,null,null,null,null,null,null,"Tel.-Nr.:",null,null,null,null,null,null,null,null,null,null,null,null,null,null,null,null,null,null,null,null,null,null,null,null,"Mobil:",null,null,null,null,null,null,null,null,null,null,null,null,null,null,null,null,null,null,null,null,null,null,"Email:"]
[]
[null,null,null,null,null,null," Staffelleiter",null,null,null,null,null,null,null,null,null,null,null,null,null,null,null,null,null,":",null,null,null,null,null,null,null,null,null,null,null,null,null,null,null,null,null,null,null,null,null,null,null,"Tel.-Nr.:",null,null,null,null,null,null,null,null,null,null,null,null,null,null,null,null,null,null,null,null,null,null,null,null,"Mobil:",null,null,null,null,null,null,null,null,null,null,null,null,null,null,null,null,null,null,null,null,null,null,"Email:"]
[null,null,null,null,null,null,"Mannschaftsführer",null,null,null,null,null,null,null,null,null,null,null,null,null,null,null,null,null,":",null,null,null,null,null,null,null,null,null,null,null,null,null,null,null,null,null,null,null,null,null,null,null,"Tel.-Nr.:",null,null,null,null,null,null,null,null,null,null,null,null,null,null,null,null,null,null,null,null,null,null,null,null,"Mobil:",null,null,null,null,null,null,null,null,null,null,null,null,null,null,null,null,null,null,null,null,null,null,"Email:"]
[]
[null,null,null,null,null,null," Staffelleiter",null,null,null,null,null,null,null,null,null,null,null,null,null,null,null,null,null,":",null,null,null,null,null,null,null,null,null,null,null,null,null,null,null,null,null,null,null,null,null,null,null,"Tel.-Nr.:",null,null,null,null,null,null,null,null,null,null,null,null,null,null,null,null,null,null,null,null,null,null,null,null,"Mobil:",null,null,null,null,null,null,null,null,null,null,null,null,null,null,null,null,null,null,null,null,null,null,"Email:"]
[null,null,null,null,null,null,"Mannschaftsführer",null,null,null,null,null,null,null,null,null,null,null,null,null,null,null,null,null,":",null,null,null,null,null,null,null,null,null,null,null,null,null,null,null,null,null,null,null,null,null,null,null,"Tel.-Nr.:",null,null,null,null,null,null,null,null,null,null,null,null,null,null,null,null,null,null,null,null,null,null,null,null,"Mobil:",null,null,null,null,null,null,null,null,null,null,null,null,null,null,null,null,null,null,null,null,null,null,"Email:"]
[]
[null,null,null,null,null,null," Staffelleiter",null,null,null,null,null,null,null,null,null,null,null,null,null,null,null,null,null,":",null,null,null,null,null,null,null,null,null,null,null,null,null,null,null,null,null,null,null,null,null,null,null,"Tel.-Nr.:",null,null,null,null,null,null,null,null,null,null,null,null,null,null,null,null,null,null,null,null,null,null,null,null,"Mobil:",null,null,null,null,null,null,null,null,null,null,null,null,null,null,null,null,null,null,null,null,null,null,"Email:"]
[null,null,null,null,null,null," Mannschaftsführer",null,null,null,null,null,null,null,null,null,null,null,null,null,null,null,null,null,":",null,null,null,null,null,null,null,null,null,null,null,null,null,null,null,null,null,null,null,null,null,null,null,"Tel.-Nr.:",null,null,null,null,null,null,null,null,null,null,null,null,null,null,null,null,null,null,null,null,null,null,null,null,"Mobil:",null,null,null,null,null,null,null,null,null,null,null,null,null,null,null,null,null,null,null,null,null,null,"Email:"]

{"sheet":"Vereins Nummern","index":3,"n_rows":37,"n_cols":9,"rows_kept":37,"cut":false,"hidden":false,"merged":[[0,1,1,8]]}
[null,"Vereine in den einzelnen Bereichen KC - HO - BT/KU"]
[]
[null,"Bereich Kronach","Ver.-Nr.",null,"Bereich Hof","Ver.-Nr.",null,"Bereich BT / KU","Ver.-Nr."]
[null,"TTC Alexanderhütte",206001,null,"TSV Bad Steben ",206004,null,"SC Altenplos",206002]
[null,"TTC Au e.V. ",206003,null,"SV Berg ",206008,null,"BSV Bayreuth ",206005]
[null,"TTC Brauersdorf ",206011,null,"ASGV Döhlau ",206013,null,"SC Raiffeisen Bayreuth ",206006]
[null,"TSV 1894 Ebersdorf e.V. ",206015,null,"SpVgg Fassmannsreuth ",206016,null,"1. FC Bayreuth ",206007]
[null,"SV Fischbach ",206017,null,"SG Schwarz-W. Gattendorf ",206019,null,"TSV Bindlach ",206009]
[null,"SV Friesen ",206018,null,"Post und Telekom SV Hof",206027,null,"TSV Bischofsgrün ",206010]
[null,"TV Eichenkranz Gehülz ",206022,null,"SV 1911 Hof ",206028,null,"TTC Creussen ",206012]
[null,"FC Wacker Haig ",206024,null,"TTC 1990 Hof ",206029,null,"TSV Donndorf-Eckersdorf ",206014]
[null,"SC 1947 Haßlach b.T. e.V. ",206025,null,"TSV Hof 1861 e.V. ",206030,null,"SF 1984 Gefrees e.V. ",206020]
[null,"SV Hummendorf ",206032,null,"SV Issigau ",206033,null,"TV 1862 Gefrees ",206021]
[null,"ASV Kleintettau ",206036,null,"TTC Köditz 1950 e.V. ",206037,null,"BGV Gollenbach-Plösen",206023]
[null,"TS 1861 Kronach ",206039,null,"TV Konradsreuth ",206038,null,"SV 1921 Heinersreuth ",206026]
[null,"SV Langenau ",206042,null,"ASV Marktleuthen e.V.",206048,null,"ASV Hollfeld ",206031]
[null,"TSV Ludwigsstadt ",206044,null,"SV Marlesreuth ",206049,null,"TSV Kirchenlaibach ",206034]
[null,"TV 1906 Marienroth e.V. ",206046,null,"TV Meierhof von 1905 e.V. ",206050,null,"SSV Kirchenpingarten ",206035]
[null,"DJK SV Neufang ",206057,null,"TTV Moschendorf ",206053,null,"Post SV Kulmbach ",206040]
[null,"SG Neuses ",206059,null,"CVJM Naila ",206054,null,"ATS Kulmbach 1861 e.V. ",206041]
[null,"FC Nordhalben ",206060,null,"Freie Turnerschaft Naila ",206055,null,"TTC Mainleus ",206045]
[null,"SV Nurn ",206061,null,"ATSV Oberkotzau ",206062,null,"TV 1910 Marktleugast ",206047]
[null,"1. FC Pressig ",206067,null,"TSV Presseck 1891 ",206066,null,"TSV Mistelbach 1909 e.V. ",206051]
[null,"ATSV Reichenbach ",206070,null,"SG Regnitzlosau ",206068,null,"SV Mistelgau e.V. ",206052]
[null,"SC Rennsteig e.V. ",206071,null,"TV Rehau 1884 ",206069,null,"ASV Nemmersdorf ",206056]
[null,"SV Rothenkirchen 1946",206072,null,"TTV Schauenstein ",206074,null,"SV Neunkirchen am Main ",206058]
[null,"TSV Steinberg 1910 e.V. ",206079,null,"TS Schwarzenbach/Saale ",206075,null,"TSV 1909 Obernsees ",206063]
[null,"TSV 1889 Stockheim ",206080,null,"SV Sparneck 1910 ",206076,null,"SV Glückauf Pegnitz ",206064]
[null,"TSV Teuschnitz ",206082,null,"TTC Stammbach ",206078,null,"TSC Pottenstein ",206065]
[null,"TTC Wallenfels 1963 e.V. ",206086,null,"BSC Tauperlitz 1930 ",206081,null,"TTC Rugendorf e.V. ",206073]
[null,"TSV Weißenbrunn 1911 ",206088,null,"TuS Töpen ",206084,null,"TSV 1862 Stadtsteinach e.V",206077]
[null,"TSV Windheim 1904 ",206090,null,"TSV Zell ",206093,null,"TSV 1902 Thurnau ",206083]
[null,"TTV Wolfersdorf ",206091,null,"Vereine",29,null,"TTC Trebgast-Lanzendorf ",206085]
[null,"Vereine",30,null,null,null,null,"SV Weidenberg ",206087]
[null,null,null,null,null,null,null,"TTC Willmersreuth e.V. ",206089]
[null,null,null,null,null,null,null,"SpVgg Wonsees ",206092]
[null,null,null,null,null,null,null,"Vereine",33]

{"sheet":"HILFE","index":4,"n_rows":60,"n_cols":178,"rows_kept":60,"cut":false,"hidden":false,"merged":[[3,28,3,41],[3,132,5,134],[3,135,5,145],[4,6,4,41],[4,46,5,76],[4,79,5,94],[4,101,4,120],[5,24,5,27],[5,28,5,41],[3,46,3,76],[3,77,5,78],[3,79,3,94],[3,101,3,104],[3,106,3,120],[5,6,5,9],[5,10,5,23],[0,149,59,152],[1,6,1,18],[1,19,1,46],[1,47,1,50],[1,51,1,86],[1,87,1,90],[1,91,1,92],[1,93,1,134],[1,135,1,145],[2,6,2,41],[2,42,5,45],[2,46,2,94],[2,95,5,100],[2,101,2,145],[3,6,3,9],[3,10,3,23],[3,24,3,27],[3,121,5,131],[5,101,5,104],[5,106,5,120],[6,139,6,145],[7,6,7,45],[7,46,7,53],[7,54,7,60],[7,61,8,71],[7,72,7,79],[7,80,7,86],[7,87,7,126],[7,130,7,145],[8,6,8,45],[6,6,6,60],[6,61,6,71],[6,72,6,126],[6,127,7,129],[6,130,6,136],[6,137,6,138],[8,46,8,60],[8,72,8,86],[8,87,8,145],[9,6,9,145],[10,6,10,13],[10,14,10,66],[10,67,10,74],[10,75,15,76],[10,77,10,84],[10,85,10,137],[10,138,10,145],[11,6,13,9],[11,10,11,13],[11,14,11,66],[11,67,11,74],[11,77,14,80],[11,81,11,84],[11,85,11,137],[11,138,11,145],[12,10,12,13],[12,14,12,66],[12,67,12,74],[12,81,12,84],[12,85,12,137],[12,138,12,145],[13,10,13,13],[13,14,13,66],[13,67,13,74],[13,81,13,84],[13,85,13,137],[15,77,15,80],[15,81,15,84],[15,85,15,113],[15,114,15,116],[15,117,15,145],[16,6,16,145],[13,138,13,145],[14,6,14,74],[14,81,14,84],[14,85,14,137],[14,138,14,145],[15,6,15,9],[15,10,15,13],[15,14,15,42],[15,43,15,45],[15,46,15,74],[17,108,17,117],[17,118,17,127],[17,128,17,137],[17,138,17,145],[18,6,18,15],[18,16,19,16],[18,17,18,45],[18,46,19,46],[18,47,19,47],[18,48,18,76],[17,6,17,15],[17,16,17,46],[17,47,17,77],[17,78,17,87],[17,88,17,97],[17,98,17,107],[20,6,20,8],[20,9,20,15],[20,16,20,46],[20,47,20,77],[20,78,20,82],[20,83,20,87],[18,133,19,137],[18,138,19,141],[18,142,19,145],[19,6,19,15],[19,17,19,45],[19,48,19,76],[18,103,19,107],[18,108,19,112],[18,113,19,117],[18,118,19,122],[18,123,19,127],[18,128,19,132],[18,77,19,77],[18,78,19,82],[18,83,19,87],[18,88,19,92],[18,93,19,97],[18,98,19,102],[20,118,20,122],[20,123,20,127],[20,128,20,132],[20,133,20,137],[20,138,20,141],[20,142,20,145],[20,88,20,92],[20,93,20,97],[20,98,20,102],[20,103,20,107],[20,108,20,112],[20,113,20,117],[21,133,21,137],[21,138,21,141],[21,142,21,145],[21,88,21,92],[21,93,21,97],[21,98,21,102],[21,103,21,107],[21,108,21,112],[21,113,21,117],[22,6,22,8],[22,9,22,15],[22,16,22,46],[22,47,22,77],[22,78,22,82],[22,83,22,87],[21,118,21,122],[21,123,21,127],[21,128,21,132],[21,6,21,8],[21,9,21,15],[21,16,21,46],[21,47,21,77],[21,78,21,82],[21,83,21,87],[22,118,22,122],[22,123,22,127],[22,128,22,132],[22,133,22,137],[22,138,22,141],[22,142,22,145],[22,88,22,92],[22,93,22,97],[22,98,22,102],[22,103,22,107],[22,108,22,112],[22,113,22,117],[23,133,23,137],[23,138,23,141],[23,142,23,145],[23,88,23,92],[23,93,23,97],[23,98,23,102],[23,103,23,107],[23,108,23,112],[23,113,23,117],[24,6,24,8],[24,9,24,15],[24,16,24,46],[24,47,24,77],[24,78,24,82],[24,83,24,87],[23,118,23,122],[23,123,23,127],[23,128,23,132],[23,6,23,8],[23,9,23,15],[23,16,23,46],[23,47,23,77],[23,78,23,82],[23,83,23,87],[24,118,24,122],[24,123,24,127],[24,128,24,132],[24,133,24,137],[24,138,24,141],[24,142,24,145],[24,88,24,92],[24,93,24,97],[24,98,24,102],[24,103,24,107],[24,108,24,112],[24,113,24,117],[25,133,25,137],[25,138,25,141],[25,142,25,145],[25,88,25,92],[25,93,25,97],[25,98,25,102],[25,103,25,107],[25,108,25,112],[25,113,25,117],[26,6,26,8],[26,9,26,15],[26,16,26,46],[26,47,26,77],[26,78,26,82],[26,83,26,87],[25,118,25,122],[25,123,25,127],[25,128,25,132],[25,6,25,8],[25,9,25,15],[25,16,25,46],[25,47,25,77],[25,78,25,82],[25,83,25,87],[26,118,26,122],[26,123,26,127],[26,128,26,132],[26,133,26,137],[26,138,26,141],[26,142,26,145],[26,88,26,92],[26,93,26,97],[26,98,26,102],[26,103,26,107],[26,108,26,112],[26,113,26,117],[27,133,27,137],[27,138,27,141],[27,142,27,145],[27,88,27,92],[27,93,27,97],[27,98,27,102],[27,103,27,107],[27,108,27,112],[27,113,27,117],[28,6,28,8],[28,9,28,15],[28,16,28,46],[28,47,28,77],[28,78,28,82],[28,83,28,87],[27,118,27,122],[27,123,27,127],[27,128,27,132],[27,6,27,8],[27,9,27,15],[27,16,27,46],[27,47,27,77],[27,78,27,82],[27,83,27,87],[28,118,28,122],[28,123,28,127],[28,128,28,132],[28,133,28,137],[28,138,28,141],[28,142,28,145],[28,88,28,92],[28,93,28,97],[28,98,28,102],[28,103,28,107],[28,108,28,112],[28,113,28,117],[30,66,30,87],[30,88,30,93],[30,94,30,95],[30,96,30,101],[30,102,30,127],[31,6,31,145],[29,6,29,127],[29,128,30,132],[29,133,30,137],[29,138,30,141],[29,142,30,145],[30,6,30,19],[30,20,30,30],[30,31,30,40],[30,41,30,54],[30,55,30,65],[32,6,32,145],[33,6,33,16],[33,17,33,18],[33,19,33,55],[33,56,33,62],[33,63,33,67],[33,68,33,69],[33,70,33,74],[33,75,33,86],[33,87,33,93],[35,67,38,88],[35,89,38,123],[35,124,38,145],[39,67,52,71],[39,72,52,104],[39,105,52,112],[39,113,52,145],[33,130,33,131],[33,132,33,137],[33,138,33,145],[34,6,34,145],[35,6,39,14],[35,15,39,16],[35,17,39,40],[35,41,55,42],[35,43,43,64],[35,65,55,66],[33,94,33,98],[33,99,33,100],[33,101,33,105],[33,106,33,116],[33,117,33,123],[33,124,33,129],[40,6,44,14],[40,15,44,16],[40,17,44,40],[44,43,55,43],[44,44,46,63],[44,64,55,64],[45,6,45,36],[45,37,55,40],[46,6,49,9],[46,10,49,10],[53,113,55,145],[55,6,55,36],[55,44,55,63],[46,11,49,36],[47,44,48,63],[49,44,51,63],[50,6,50,36],[51,6,54,9],[51,10,54,10],[51,11,54,36],[52,44,54,63],[58,96,58,102],[58,103,58,145],[59,0,59,145],[58,6,58,23],[58,25,58,47],[58,48,58,55],[58,56,58,72],[58,73,58,78],[58,79,58,95],[0,0,58,5],[0,6,0,145],[56,6,56,145],[57,6,57,23],[57,25,57,47],[57,48,57,55],[57,56,57,72],[57,73,57,78],[57,79,57,95],[57,96,57,102],[57,103,57,145],[53,67,55,71],[53,72,55,104],[53,105,55,107],[53,108,55,112],[21,161,21,210],[23,160,23,211],[24,160,24,211],[25,160,25,211],[26,160,26,211],[11,161,11,170],[11,171,11,176],[11,177,11,199],[12,161,12,170],[12,177,12,199],[13,161,13,199],[14,161,14,199],[15,161,15,208],[18,161,18,210],[19,161,19,210],[20,161,20,210]]}
[null,null,null,null,null,null,"\"Braunschweiger System\"   -   3 gegen 4"]
[null,null,null,null,null,null,null,null,null,null,null,null,null,null,null,null,null,null,null,"TT-Berzirk 6",null,null,null,null,null,null,null,null,null,null,null,null,null,null,null,null,null,null,null,null,null,null,null,null,null,null,null,"-",null,null,null,"Oberfranken Ost",null,null,null,null,null,null,null,null,null,null,null,null,null,null,null,null,null,null,null,null,null,null,null,null,null,null,null,null,null,null,null,null,null,null,null,"-",null,null,null,null,null,"Bezirks-Klasse D"]
[]
[null,null,null,null,null,null,null,null,null,null," Damen",null,null,null,null,null,null,null,null,null,null,null,null,null,null,null,null,null," Mädchen",null,null,null,null,null,null,null,null,null,null,null,null,null,null,null,null,null,"Bereich",null,null,null,null,null,null,null,null,null,null,null,null,null,null,null,null,null,null,null,null,null,null,null,null,null,null,null,null,null,null,null,null,"Klasse/Gruppe",null,null,null,null,null,null,null,null,null,null,null,null,null,null,null,null,null,null,null,null,null,null,null,null,null,null,"Vorrunde",null,null,null,null,null,null,null,null,null,null,null,null,null,null,2018,null,null,null,null,null,null,null,null,null,null,"/",null,null,{"$f":"DR4+1","v":2019}]
[]
[null,null,null,null,null,null,null,null,null,null," Herren",null,null,null,null,null,null,null,null,null,null,null,null,null,null,null,null,null," Jungen",null,null,null,null,null,null,null,null,null,null,null,null,null,null,null,null,null,null,null,null,null,null,null,null,null,null,null,null,null,null,null,null,null,null,null,null,null,null,null,null,null,null,null,null,null,null,null,null,null,null,null,null,null,null,null,null,null,null,null,null,null,null,null,null,null,null,null,null,null,null,null,null,null,null,null,null,null,"Rückrunde"]
[null,null,null,null,null,null,"Heim ",null,null,null,null,null,null,null,null,null,null,null,null,null,null,null,null,null,null,null,null,null,null,null,null,null,null,null,null,null,null,null,null,null,null,null,null,null,null,null,null,null,null,null,null,null,null,null,null,null,null,null,null,null,null,"gegen",null,null,null,null,null,null,null,null,null,null,"Gast",null,null,null,null,null,null,null,null,null,null,null,null,null,null,null,null,null,null,null,null,null,null,null,null,null,null,null,null,null,null,null,null,null,null,null,null,null,null,null,null,null,null,null,null,null,null,null,null,null,null,null,null,null,null,null,null,null,{"$f":"EI30","v":4},null,null,null,null,null,null,":",null,{"$f":"EM30","v":6},null,null,null,null,null,null,{"$f":"IF(EI30=EM30,\"\",IF(EI30>EM30,G7,BU7))","v":"Gast"}]
[null,null,null,null,null,null,"Heimmannschaft  ( A )",null,null,null,null,null,null,null,null,null,null,null,null,null,null,null,null,null,null,null,null,null,null,null,null,null,null,null,null,null,null,null,null,null,null,null,null,null,null,null,206,null,null,null,null,null,null,null,0,null,null,null,null,null,null,null,null,null,null,null,null,null,null,null,null,null,{"$f":"AU8","v":206},null,null,null,null,null,null,null,0,null,null,null,null,null,null,"Gastmannschaft  ( B )",null,null,null,null,null,null,null,null,null,null,null,null,null,null,null,null,null,null,null,null,null,null,null,null,null,null,null,null,null,null,null,null,null,null,null,null,null,null,null,null,null,null,"Endergebnis",null,null,null,null,null,null,null,null,null,null,null,null,null,null,null,{"$f":"IF(BL34=\"\",\"\",IF(EI30=EM30,EQ14))","v":false}]
[null,null,null,null,null,null,null,null,null,null,null,null,null,null,null,null,null,null,null,null,null,null,null,null,null,null,null,null,null,null,null,null,null,null,null,null,null,null,null,null,null,null,null,null,null,null,"Vereins-Nr.",null,null,null,null,null,null,null,null,null,null,null,null,null,null,null,null,null,null,null,null,null,null,null,null,null,"Vereins-Nr."]
[null,null,null,null,null,null,"Mannschaftsaufstellung"]
[null,null,null,null,null,null,"Rang",null,null,null,null,null,null,null,"Heimverein ( Mannschaft A )",null,null,null,null,null,null,null,null,null,null,null,null,null,null,null,null,null,null,null,null,null,null,null,null,null,null,null,null,null,null,null,null,null,null,null,null,null,null,null,null,null,null,null,null,null,null,null,null,null,null,null,null,"Pos.",null,null,null,null,null,null,null,null,null,"Rang",null,null,null,null,null,null,null,"Gastverein ( Mannschaft B )",null,null,null,null,null,null,null,null,null,null,null,null,null,null,null,null,null,null,null,null,null,null,null,null,null,null,null,null,null,null,null,null,null,null,null,null,null,null,null,null,null,null,null,null,null,null,null,null,null,null,null,null,"Pos."]
[null,null,null,null,null,null,"E I N Z E L",null,null,null,"A1",null,null,null,"Heimspieler A1",null,null,null,null,null,null,null,null,null,null,null,null,null,null,null,null,null,null,null,null,null,null,null,null,null,null,null,null,null,null,null,null,null,null,null,null,null,null,null,null,null,null,null,null,null,null,null,null,null,null,null,null,"3.1",null,null,null,null,null,null,null,null,null,"E I N Z E L",null,null,null,"B1",null,null,null,"Gastspieler B1",null,null,null,null,null,null,null,null,null,null,null,null,null,null,null,null,null,null,null,null,null,null,null,null,null,null,null,null,null,null,null,null,null,null,null,null,null,null,null,null,null,null,null,null,null,null,null,null,null,null,null,null,"5.2",null,null,null,null,null,null,null,{"$f":"IF(EI30<>EM30,EQ7,EQ8)","v":"Gast"},null,null,null,null,null,null,null,null,null,null,null,null,null,null,"In den",null,null,null,null,null,null,null,null,null,null,null,null,null,null,null," gelben oder"]
[null,null,null,null,null,null,null,null,null,null,"A2",null,null,null,"Heimspieler A2",null,null,null,null,null,null,null,null,null,null,null,null,null,null,null,null,null,null,null,null,null,null,null,null,null,null,null,null,null,null,null,null,null,null,null,null,null,null,null,null,null,null,null,null,null,null,null,null,null,null,null,null,"3.2",null,null,null,null,null,null,null,null,null,null,null,null,null,"B2",null,null,null,"Gastspieler B2",null,null,null,null,null,null,null,null,null,null,null,null,null,null,null,null,null,null,null,null,null,null,null,null,null,null,null,null,null,null,null,null,null,null,null,null,null,null,null,null,null,null,null,null,null,null,null,null,null,null,null,null,"5.4",null,null,null,null,null,null,null,"Sieger",null,null,null,null,null,null,null,null,null,null,null,null,null,null,"oder",null,null,null,null,null,null,null,null,null,null,null,null,null,null,null,"grünen Feldern"]
[null,null,null,null,null,null,null,null,null,null,"A3",null,null,null,"Heimspieler A3",null,null,null,null,null,null,null,null,null,null,null,null,null,null,null,null,null,null,null,null,null,null,null,null,null,null,null,null,null,null,null,null,null,null,null,null,null,null,null,null,null,null,null,null,null,null,null,null,null,null,null,null,"3.3",null,null,null,null,null,null,null,null,null,null,null,null,null,"B3",null,null,null,"Gastspieler B3",null,null,null,null,null,null,null,null,null,null,null,null,null,null,null,null,null,null,null,null,null,null,null,null,null,null,null,null,null,null,null,null,null,null,null,null,null,null,null,null,null,null,null,null,null,null,null,null,null,null,null,null,"5.5",null,null,null,null,null,null,null,"Unentschieden",null,null,null,null,null,null,null,null,null,null,null,null,null,null,"müssen Eintragungen"]
[null,null,null,null,null,null,null,null,null,null,null,null,null,null,null,null,null,null,null,null,null,null,null,null,null,null,null,null,null,null,null,null,null,null,null,null,null,null,null,null,null,null,null,null,null,null,null,null,null,null,null,null,null,null,null,null,null,null,null,null,null,null,null,null,null,null,null,null,null,null,null,null,null,null,null,null,null,null,null,null,null,"B4",null,null,null,"Gastspieler B4",null,null,null,null,null,null,null,null,null,null,null,null,null,null,null,null,null,null,null,null,null,null,null,null,null,null,null,null,null,null,null,null,null,null,null,null,null,null,null,null,null,null,null,null,null,null,null,null,null,null,null,null,"5.7",null,null,null,null,null,null,null,null,null,null,null,null,null,null,null,null,null,null,null,null,null,null,"vorgenommen werden!"]
[null,null,null,null,null,null,"D",null,null,null,"A1",null,null,null,"Dopperspieler A A",null,null,null,null,null,null,null,null,null,null,null,null,null,null,null,null,null,null,null,null,null,null,null,null,null,null,null,null,"/",null,null,"Doppelspieler A B",null,null,null,null,null,null,null,null,null,null,null,null,null,null,null,null,null,null,null,null,null,null,null,null,null,null,null,null,null,null,"D",null,null,null,"B1",null,null,null,"Doppelspieler B A",null,null,null,null,null,null,null,null,null,null,null,null,null,null,null,null,null,null,null,null,null,null,null,null,null,null,null,null,"/",null,null,"Doppelspieler B B",null,null,null,null,null,null,null,null,null,null,null,null,null,null,null,null,null,null,null,null,null,null,null,null,null,null,null,null,null,null,null,null,null,null,null,null,null,null,null,null,null,null,null,"Rest wird automatisch gemacht"]
[]
[null,null,null,null,null,null,"Spielfolge",null,null,null,null,null,null,null,null,null,"Heimverein ( Mannschaft A )",null,null,null,null,null,null,null,null,null,null,null,null,null,null,null,null,null,null,null,null,null,null,null,null,null,null,null,null,null,null,"Gastverein ( Mannschaft B )",null,null,null,null,null,null,null,null,null,null,null,null,null,null,null,null,null,null,null,null,null,null,null,null,null,null,null,null,null,null,"1. Satz",null,null,null,null,null,null,null,null,null,"2. Satz",null,null,null,null,null,null,null,null,null,"3. Satz",null,null,null,null,null,null,null,null,null,"4. Satz",null,null,null,null,null,null,null,null,null,"5. Satz",null,null,null,null,null,null,null,null,null,"Sätze",null,null,null,null,null,null,null,null,null,"Spiele",null,null,null,null,null,null,null,{"$f":"G7","v":"Heim "}]
[null,null,null,null,null,null,"Doppel",null,null,null,null,null,null,null,null,null,null,{"$f":"O16","v":"Dopperspieler A A"},null,null,null,null,null,null,null,null,null,null,null,null,null,null,null,null,null,null,null,null,null,null,null,null,null,null,null,null,null,null,{"$f":"CH16","v":"Doppelspieler B A"},null,null,null,null,null,null,null,null,null,null,null,null,null,null,null,null,null,null,null,null,null,null,null,null,null,null,null,null,null,11,null,null,null,null,5,null,null,null,null,11,null,null,null,null,6,null,null,null,null,11,null,null,null,null,7,null,null,null,null,null,null,null,null,null,null,null,null,null,null,null,null,null,null,null,null,null,null,null,null,{"$f":"IF(CA19=\"\",\"\",IF(CA19>CF19,1,0)+IF(CK19>CP19,1,0)+IF(CU19>CZ19,1,0)+IF(DE19>DJ19,1,0)+IF(DO19>DT19,1,0))","v":3},null,null,null,null,{"$f":"IF(CA19=\"\",\"\",IF(CA19<CF19,1,0)+IF(CK19<CP19,1,0)+IF(CU19<CZ19,1,0)+IF(DE19<DJ19,1,0)+IF(DO19<DT19,1,0))","v":0},null,null,null,null,{"$f":"IF(DY19=\"\",\"\",IF(DY19>ED19,1,0))","v":1},null,null,null,{"$f":"IF(DY19=\"\",\"\",IF(DY19<ED19,1,0))","v":0},null,null,null,{"$f":"SUM(CA19:CE29)","v":70},{"$f":"IF(DY19=3,1,0)","v":1},{"$f":"IF(ED19=3,1,0)","v":0},null,null,null,null,null,null,null,null,null,null,null,null,"Um nicht versehentlich irgendwelche Formeln"]
[null,null,null,null,null,null,"A1 - B1",null,null,null,null,null,null,null,null,null,null,{"$f":"AU16","v":"Doppelspieler A B"},null,null,null,null,null,null,null,null,null,null,null,null,null,null,null,null,null,null,null,null,null,null,null,null,null,null,null,null,null,null,{"$f":"DN16","v":"Doppelspieler B B"},null,null,null,null,null,null,null,null,null,null,null,null,null,null,null,null,null,null,null,null,null,null,null,null,null,null,null,null,null,null,null,null,null,null,null,null,null,null,null,null,null,null,null,null,null,null,null,null,null,null,null,null,null,null,null,null,null,null,null,null,null,null,null,null,null,null,null,null,null,null,null,null,null,null,null,null,null,null,null,null,null,null,null,null,null,null,null,null,null,null,null,null,null,null,null,null,null,{"$f":"SUM(CK19:CO29)","v":107},null,null,null,null,null,null,null,null,null,null,null,null,null,null,"zu löschen, sollte der Blattschutz immer auf"]
[null,null,null,null,null,null,"E",null,null,"A3-B3",null,null,null,null,null,null,{"$f":"O14","v":"Heimspieler A3"},null,null,null,null,null,null,null,null,null,null,null,null,null,null,null,null,null,null,null,null,null,null,null,null,null,null,null,null,null,null,{"$f":"CH14","v":"Gastspieler B3"},null,null,null,null,null,null,null,null,null,null,null,null,null,null,null,null,null,null,null,null,null,null,null,null,null,null,null,null,null,null,5,null,null,null,null,11,null,null,null,null,6,null,null,null,null,11,null,null,null,null,7,null,null,null,null,11,null,null,null,null,null,null,null,null,null,null,null,null,null,null,null,null,null,null,null,null,null,null,null,null,{"$f":"IF(CA21=\"\",\"\",IF(CA21>CF21,1,0)+IF(CK21>CP21,1,0)+IF(CU21>CZ21,1,0)+IF(DE21>DJ21,1,0)+IF(DO21>DT21,1,0))","v":0},null,null,null,null,{"$f":"IF(CA21=\"\",\"\",IF(CA21<CF21,1,0)+IF(CK21<CP21,1,0)+IF(CU21<CZ21,1,0)+IF(DE21<DJ21,1,0)+IF(DO21<DT21,1,0))","v":3},null,null,null,null,{"$f":"IF(DY21=\"\",\"\",IF(DY21>ED21,1,0))","v":0},null,null,null,{"$f":"IF(DY21=\"\",\"\",IF(DY21<ED21,1,0))","v":1},null,null,null,{"$f":"SUM(CU19:CY29)","v":100},{"$f":"IF(DY21=3,1,0)","v":0},{"$f":"IF(ED21=3,1,0)","v":1},null,null,null,null,null,null,null,null,null,null,null,null,"\"EIN\" gestellt bleiben; nur wenn unbeding nötig"]
[null,null,null,null,null,null,"E",null,null,"A2-B1",null,null,null,null,null,null,{"$f":"O13","v":"Heimspieler A2"},null,null,null,null,null,null,null,null,null,null,null,null,null,null,null,null,null,null,null,null,null,null,null,null,null,null,null,null,null,null,{"$f":"CH12","v":"Gastspieler B1"},null,null,null,null,null,null,null,null,null,null,null,null,null,null,null,null,null,null,null,null,null,null,null,null,null,null,null,null,null,null,11,null,null,null,null,3,null,null,null,null,3,null,null,null,null,11,null,null,null,null,11,null,null,null,null,9,null,null,null,null,8,null,null,null,null,11,null,null,null,null,5,null,null,null,null,11,null,null,null,null,2,null,null,null,null,3,null,null,null,null,0,null,null,null,1,null,null,null,{"$f":"SUM(DE19:DI29)","v":62},0,1,null,null,null,null,null,null,null,null,null,null,null,null,"kann man den Blattschautz mit \"AUS\" aufheben."]
[null,null,null,null,null,null,"E",null,null,"A1-B2",null,null,null,null,null,null,{"$f":"O12","v":"Heimspieler A1"},null,null,null,null,null,null,null,null,null,null,null,null,null,null,null,null,null,null,null,null,null,null,null,null,null,null,null,null,null,null,{"$f":"CH13","v":"Gastspieler B2"},null,null,null,null,null,null,null,null,null,null,null,null,null,null,null,null,null,null,null,null,null,null,null,null,null,null,null,null,null,null,4,null,null,null,null,11,null,null,null,null,11,null,null,null,null,9,null,null,null,null,13,null,null,null,null,11,null,null,null,null,11,null,null,null,null,5,null,null,null,null,null,null,null,null,null,null,null,null,null,null,3,null,null,null,null,1,null,null,null,null,1,null,null,null,0,null,null,null,{"$f":"SUM(DO19:DS29)","v":16},1,0]
[null,null,null,null,null,null,"E",null,null,"A2-B4",null,null,null,null,null,null,{"$f":"O13","v":"Heimspieler A2"},null,null,null,null,null,null,null,null,null,null,null,null,null,null,null,null,null,null,null,null,null,null,null,null,null,null,null,null,null,null,{"$f":"CH15","v":"Gastspieler B4"},null,null,null,null,null,null,null,null,null,null,null,null,null,null,null,null,null,null,null,null,null,null,null,null,null,null,null,null,null,null,5,null,null,null,null,11,null,null,null,null,13,null,null,null,null,11,null,null,null,null,11,null,null,null,null,13,null,null,null,null,8,null,null,null,null,11,null,null,null,null,null,null,null,null,null,null,null,null,null,null,1,null,null,null,null,3,null,null,null,null,0,null,null,null,1,null,null,null,{"$f":"SUM(EQ19:EQ23)","v":355},0,1,null,null,null,null,null,null,null,null,null,null,null,"\"Heimeintrag verdeckt\" kann man dann anklicken"]
[null,null,null,null,null,null,"E",null,null,"A1-B1",null,null,null,null,null,null,{"$f":"O12","v":"Heimspieler A1"},null,null,null,null,null,null,null,null,null,null,null,null,null,null,null,null,null,null,null,null,null,null,null,null,null,null,null,null,null,null,{"$f":"CH12","v":"Gastspieler B1"},null,null,null,null,null,null,null,null,null,null,null,null,null,null,null,null,null,null,null,null,null,null,null,null,null,null,null,null,null,null,6,null,null,null,null,11,null,null,null,null,11,null,null,null,null,9,null,null,null,null,11,null,null,null,null,6,null,null,null,null,11,null,null,null,null,3,null,null,null,null,null,null,null,null,null,null,null,null,null,null,3,null,null,null,null,1,null,null,null,null,1,null,null,null,0,null,null,null,{"$f":"BU7","v":"Gast"},1,0,null,null,null,null,null,null,null,null,null,null,null,"wenn man den eigenen Eintrag verdecken will."]
[null,null,null,null,null,null,"E",null,null,"A3-B4",null,null,null,null,null,null,{"$f":"O14","v":"Heimspieler A3"},null,null,null,null,null,null,null,null,null,null,null,null,null,null,null,null,null,null,null,null,null,null,null,null,null,null,null,null,null,null,{"$f":"CH15","v":"Gastspieler B4"},null,null,null,null,null,null,null,null,null,null,null,null,null,null,null,null,null,null,null,null,null,null,null,null,null,null,null,null,null,null,7,null,null,null,null,11,null,null,null,null,13,null,null,null,null,11,null,null,null,null,11,null,null,null,null,13,null,null,null,null,4,null,null,null,null,11,null,null,null,null,null,null,null,null,null,null,null,null,null,null,1,null,null,null,null,3,null,null,null,null,0,null,null,null,1,null,null,null,{"$f":"SUM(CF19:CJ29)","v":96},0,1,null,null,null,null,null,null,null,null,null,null,null,"\"Heimeintrag sichtbar\" anklicken; dadurch wird"]
[null,null,null,null,null,null,"E",null,null,"A2-B2",null,null,null,null,null,null,{"$f":"O13","v":"Heimspieler A2"},null,null,null,null,null,null,null,null,null,null,null,null,null,null,null,null,null,null,null,null,null,null,null,null,null,null,null,null,null,null,{"$f":"CH13","v":"Gastspieler B2"},null,null,null,null,null,null,null,null,null,null,null,null,null,null,null,null,null,null,null,null,null,null,null,null,null,null,null,null,null,null,8,null,null,null,null,11,null,null,null,null,11,null,null,null,null,9,null,null,null,null,9,null,null,null,null,11,null,null,null,null,11,null,null,null,null,8,null,null,null,null,11,null,null,null,null,7,null,null,null,null,3,null,null,null,null,2,null,null,null,null,1,null,null,null,0,null,null,null,{"$f":"SUM(CP19:CT29)","v":101},1,0,null,null,null,null,null,null,null,null,null,null,null,"der Eintrag wieder für den Gast einsehbar"]
[null,null,null,null,null,null,"E",null,null,"A3-B1",null,null,null,null,null,null,{"$f":"O14","v":"Heimspieler A3"},null,null,null,null,null,null,null,null,null,null,null,null,null,null,null,null,null,null,null,null,null,null,null,null,null,null,null,null,null,null,{"$f":"CH12","v":"Gastspieler B1"},null,null,null,null,null,null,null,null,null,null,null,null,null,null,null,null,null,null,null,null,null,null,null,null,null,null,null,null,null,null,8,null,null,null,null,11,null,null,null,null,14,null,null,null,null,12,null,null,null,null,13,null,null,null,null,15,null,null,null,null,4,null,null,null,null,11,null,null,null,null,null,null,null,null,null,null,null,null,null,null,1,null,null,null,null,3,null,null,null,null,0,null,null,null,1,null,null,null,{"$f":"SUM(CZ19:DD29)","v":107},0,1]
[null,null,null,null,null,null,"E",null,null,"A1-B3",null,null,null,null,null,null,{"$f":"O12","v":"Heimspieler A1"},null,null,null,null,null,null,null,null,null,null,null,null,null,null,null,null,null,null,null,null,null,null,null,null,null,null,null,null,null,null,{"$f":"CH14","v":"Gastspieler B3"},null,null,null,null,null,null,null,null,null,null,null,null,null,null,null,null,null,null,null,null,null,null,null,null,null,null,null,null,null,null,5,null,null,null,null,11,null,null,null,null,14,null,null,null,null,12,null,null,null,null,3,null,null,null,null,11,null,null,null,null,5,null,null,null,null,11,null,null,null,null,null,null,null,null,null,null,null,null,null,null,1,null,null,null,null,3,null,null,null,null,0,null,null,null,1,null,null,null,{"$f":"SUM(DJ19:DN29)","v":71},0,1]
[null,null,null,null,null,null,null,null,null,null,null,null,null,null,null,null,null,null,null,null,null,null,null,null,null,null,null,null,null,null,null,null,null,null,null,null,null,null,null,null,null,null,null,null,null,null,null,null,null,null,null,null,null,null,null,null,null,null,null,null,null,null,null,null,null,null,null,null,null,null,null,null,null,null,null,null,null,null,null,null,null,null,null,null,null,null,null,null,null,null,null,null,null,null,null,null,null,null,null,null,null,null,null,null,null,null,null,null,null,null,null,null,null,null,null,null,null,null,null,null,null,null,null,null,null,null,null,null,{"$f":"IF(DY19=\"\",\"\",SUM(DY19:EC29))","v":18},null,null,null,null,{"$f":"IF(ED19=\"\",\"\",SUM(ED19:EH29))","v":22},null,null,null,null,{"$f":"IF(EI19=\"\",\"\",SUM(EI19:EL29))","v":4},null,null,null,{"$f":"IF(EM19=\"\",\"\",SUM(EM19:EP29))","v":6},null,null,null,{"$f":"SUM(DT19:DX29)","v":18}]
[null,null,null,null,null,null,"Spielbeginn :",null,null,null,null,null,null,null,null,null,null,null,null,null,null,null,null,null,null,null,null,null,null,null,null,"Uhr",null,null,null,null,null,null,null,null,null,"Spielende :",null,null,null,null,null,null,null,null,null,null,null,null,null,null,null,null,null,null,null,null,null,null,null,null,"Uhr",null,null,null,null,null,null,null,null,null,null,null,null,null,null,null,null,null,null,null,null,null,{"$f":"EQ24","v":355},null,null,null,null,null,":",null,{"$f":"EQ31","v":393},null,null,null,null,null," Bälle",null,null,null,null,null,null,null,null,null,null,null,null,null,null,null,null,null,null,null,null,null,null,null,null,null,null,null,null,null,null,null,null,null,null,null,null,null,null,null,null,null,null,null,{"$f":"SUM(EQ26:EQ30)","v":393},{"$f":"SUM(ER19:ER29)","v":4},{"$f":"SUM(ES19:ES29)","v":6}]
[]
[]
[null,null,null,null,null,null,{"$f":"IF(BL34=BS34,\"\",IF(BL34>BS34,EQ13,EQ15))","v":"Sieger"},null,null,null,null,null,null,null,null,null,null,":",null,{"$f":"EQ12","v":"Gast"},null,null,null,null,null,null,null,null,null,null,null,null,null,null,null,null,null,null,null,null,null,null,null,null,null,null,null,null,null,null,null,null,null,null,null,null,"mit :",null,null,null,null,null,null,{"$f":"IF(EI30>EM30,EI30,EM30)","v":6},null,null,null,null,":",null,{"$f":"IF(EI30<EM30,EI30,EM30)","v":4},null,null,null,null,"Spielen",null,null,null,null,null,null,null,null,null,null,null,"und",null,null,null,null,null,null,{"$f":"IF(EI30>=EM30,DY30,ED30)","v":22},null,null,null,null,":",null,{"$f":"IF(EI30<EM30,DY30,ED30)","v":18},null,null,null,null,"Sätzen",null,null,null,null,null,null,null,null,null,null,"und",null,null,null,null,null,null,{"$f":"IF(EI30>=EM30,EQ24,EQ31)","v":393},null,null,null,null,null,":",null,{"$f":"IF(EI30<EM30,EQ24,EQ31)","v":355},null,null,null,null,null," Bälle"]
[]
[null,null,null,null,null,null,"Spielort",null,null,null,null,null,null,null,null,":",null,null,null,null,null,null,null,null,null,null,null,null,null,null,null,null,null,null,null,null,null,null,null,null,null,null,null,null,null,null,null,null,null,null,null,null,null,null,null,null,null,null,null,null,null,null,null,null,null,null,null,{"$f":"G7","v":"Heim "},null,null,null,null,null,null,null,null,null,null,null,null,null,null,null,null,null,null,null,null,null,"Unterschriften Mannschaftsführer",null,null,null,null,null,null,null,null,null,null,null,null,null,null,null,null,null,null,null,null,null,null,null,null,null,null,null,null,null,null,null,null,null,null,{"$f":"BU7","v":"Gast"}]
[]
[]
[]
[]
[null,null,null,null,null,null,"Datum",null,null,null,null,null,null,null,null,":",null,{"$f":"TODAY()","v":"2018-08-13"}]
[]
[]
[]
[null,null,null,null,null,null,null,null,null,null,null,null,null,null,null,null,null,null,null,null,null,null,null,null,null,null,null,null,null,null,null,null,null,null,null,null,null,null,null,null,null,null,null,null,{"$f":"T2","v":"TT-Berzirk 6"}]
[]
[null,null,null,null,null,null,null,null,null,null,null,"kein Protest"]
[null,null,null,null,null,null,null,null,null,null,null,null,null,null,null,null,null,null,null,null,null,null,null,null,null,null,null,null,null,null,null,null,null,null,null,null,null,null,null,null,null,null,null,null,{"$f":"AZ2","v":"Oberfranken Ost"}]
[]
[null,null,null,null,null,null,null,null,null,null,null,null,null,null,null,null,null,null,null,null,null,null,null,null,null,null,null,null,null,null,null,null,null,null,null,null,null,null,null,null,null,null,null,null,{"$f":"AU4","v":"Bereich"}]
[]
[null,null,null,null,null,null,null,null,null,null,null,"Protest - siehe Anlage"]
[null,null,null,null,null,null,null,null,null,null,null,null,null,null,null,null,null,null,null,null,null,null,null,null,null,null,null,null,null,null,null,null,null,null,null,null,null,null,null,null,null,null,null,null,{"$f":"AU5","v":0}]
[null,null,null,null,null,null,null,null,null,null,null,null,null,null,null,null,null,null,null,null,null,null,null,null,null,null,null,null,null,null,null,null,null,null,null,null,null,null,null,null,null,null,null,null,null,null,null,null,null,null,null,null,null,null,null,null,null,null,null,null,null,null,null,null,null,null,null,"Mf.:",null,null,null,null,null,null,null,null,null,null,null,null,null,null,null,null,null,null,null,null,null,null,null,null,null,null,null,null,null,null,null,null,null,null,null,null,null,null,null,null,"Mf.:"]
[]
[]
[]
[null,null,null,null,null,null,"Staffelleiter",null,null,null,null,null,null,null,null,null,null,null,null,null,null,null,null,null,":",null,null,null,null,null,null,null,null,null,null,null,null,null,null,null,null,null,null,null,null,null,null,null,"Tel.-Nr.:",null,null,null,null,null,null,null,null,null,null,null,null,null,null,null,null,null,null,null,null,null,null,null,null,"Mobil:",null,null,null,null,null,null,null,null,null,null,null,null,null,null,null,null,null,null,null,null,null,null,"Email:"]
[null,null,null,null,null,null,"Mannschaftsführer",null,null,null,null,null,null,null,null,null,null,null,null,null,null,null,null,null,":",null,null,null,null,null,null,null,null,null,null,null,null,null,null,null,null,null,null,null,null,null,null,null,"Tel.-Nr.:",null,null,null,null,null,null,null,null,null,null,null,null,null,null,null,null,null,null,null,null,null,null,null,null,"Mobil:",null,null,null,null,null,null,null,null,null,null,null,null,null,null,null,null,null,null,null,null,null,null,"Email:"]
["creadet by Gerhard Nidetzky"]